[Event "Early-Titled-Tuesday-Blitz-May-14-2024"]
[Site "Chess.com"]
[Date "2024.05.14"]
[Round "6"]
[White "PonyQueen07"]
[Black "Chernov_Mikhail"]
[Result "0-1"]
[WhiteElo "2119"]
[BlackElo "2376"]
[TimeControl "180+1"]
[EndTime "9:08:30 PDT"]
[Termination "Chernov_Mikhail won by checkmate"]

1. d4 {[%clk 0:03:00.9]} 1... Nf6 {[%clk 0:02:59.3]} 2. Bg5 {[%clk 0:03:00.5]}
2... Ne4 {[%clk 0:02:56]} 3. Bh4 {[%clk 0:02:58.6]} 3... g6 {[%clk 0:02:55.5]}
4. f3 {[%clk 0:02:46.2]} 4... Nd6 {[%clk 0:02:50.7]} 5. e4 {[%clk 0:02:43]} 5...
Bg7 {[%clk 0:02:49.3]} 6. Bf2 {[%clk 0:02:21.8]} 6... c5 {[%clk 0:02:16]} 7.
dxc5 {[%clk 0:01:59.6]} 7... Bxb2 {[%clk 0:02:12.1]} 8. cxd6 {[%clk 0:01:59.5]}
8... Bxa1 {[%clk 0:02:10.9]} 9. dxe7 {[%clk 0:01:26]} 9... Qa5+ {[%clk
0:02:00.7]} 10. Nd2 {[%clk 0:01:21.7]} 10... Bc3 {[%clk 0:01:58.3]} 11. Bc4
{[%clk 0:01:15.1]} 11... b5 {[%clk 0:01:41.9]} 12. Bd5 {[%clk 0:01:05.5]} 12...
Nc6 {[%clk 0:01:40.8]} 13. Ne2 {[%clk 0:01:05.4]} 13... Kxe7 {[%clk 0:01:27.1]}
14. Nxc3 {[%clk 0:00:45.4]} 14... Qxc3 {[%clk 0:01:28]} 15. O-O {[%clk
0:00:41.3]} 15... Rf8 {[%clk 0:01:08.9]} 16. Nb3 {[%clk 0:00:16.9]} 16... Bb7
{[%clk 0:01:02.8]} 17. Bc5+ {[%clk 0:00:15.4]} 17... d6 {[%clk 0:01:02.4]} 18.
Bxc6 {[%clk 0:00:08.6]} 18... dxc5 {[%clk 0:00:58.6]} 19. Qd7+ {[%clk
0:00:08.2]} 19... Kf6 {[%clk 0:00:57.5]} 20. Bxb7 {[%clk 0:00:08]} 20... Qe3+
{[%clk 0:00:54]} 21. Kh1 {[%clk 0:00:07.9]} 21... Rad8 {[%clk 0:00:52.5]} 22.
Qc6+ {[%clk 0:00:06.5]} 22... Kg7 {[%clk 0:00:51]} 23. Nxc5 {[%clk 0:00:04.7]}
23... Qe2 {[%clk 0:00:47.9]} 24. Rg1 {[%clk 0:00:04.2]} 24... Rd2 {[%clk
0:00:45.6]} 25. Nd3 {[%clk 0:00:03.3]} 25... Rxc2 {[%clk 0:00:43.3]} 26. Qd5
{[%clk 0:00:03.3]} 26... Rxa2 {[%clk 0:00:29.6]} 27. Nf4 {[%clk 0:00:03.5]}
27... Qb2 {[%clk 0:00:25]} 28. h4 {[%clk 0:00:02.2]} 28... h5 {[%clk 0:00:23.3]}
29. Nh3 {[%clk 0:00:01.7]} 29... a5 {[%clk 0:00:16.4]} 30. e5 {[%clk 0:00:02.1]}
30... Re8 {[%clk 0:00:13.3]} 31. Re1 {[%clk 0:00:01.1]} 31... Qxg2# {[%clk
0:00:12.6]} 0-1

[Event "Early-Titled-Tuesday-Blitz-May-14-2024"]
[Site "Chess.com"]
[Date "2024.05.14"]
[Round "6"]
[White "Firouzja2003"]
[Black "Kirill_Klukin"]
[Result "1-0"]
[WhiteElo "3184"]
[BlackElo "2823"]
[TimeControl "180+1"]
[EndTime "9:08:31 PDT"]
[Termination "Firouzja2003 won on time"]

1. e4 {[%clk 0:03:00.9]} 1... e6 {[%clk 0:02:56]} 2. d4 {[%clk 0:03:00.8]} 2...
d5 {[%clk 0:02:56.4]} 3. e5 {[%clk 0:03:01.6]} 3... c5 {[%clk 0:02:56.8]} 4. c3
{[%clk 0:03:02.5]} 4... Nc6 {[%clk 0:02:57]} 5. Nf3 {[%clk 0:03:03]} 5... Nge7
{[%clk 0:02:57.7]} 6. Na3 {[%clk 0:03:02.3]} 6... Bd7 {[%clk 0:02:56.1]} 7. Nc2
{[%clk 0:02:56.4]} 7... Qa5 {[%clk 0:02:55.9]} 8. a3 {[%clk 0:02:50]} 8... Nxd4
{[%clk 0:02:50.3]} 9. Ncxd4 {[%clk 0:02:43.4]} 9... cxd4 {[%clk 0:02:50.4]} 10.
Qxd4 {[%clk 0:02:36]} 10... Bb5 {[%clk 0:02:28.5]} 11. Qc5 {[%clk 0:02:20.2]}
11... a6 {[%clk 0:01:55.3]} 12. Bxb5+ {[%clk 0:02:19.3]} 12... Qxb5 {[%clk
0:01:47.7]} 13. Qxb5+ {[%clk 0:02:19.8]} 13... axb5 {[%clk 0:01:48.6]} 14. Nd4
{[%clk 0:02:20.1]} 14... Nc6 {[%clk 0:01:47.7]} 15. Nxb5 {[%clk 0:02:19.2]}
15... Ra5 {[%clk 0:01:47.7]} 16. a4 {[%clk 0:02:15.7]} 16... Kd7 {[%clk
0:01:30.7]} 17. Bf4 {[%clk 0:01:47.9]} 17... Be7 {[%clk 0:01:29]} 18. Ke2 {[%clk
0:01:47.5]} 18... g5 {[%clk 0:01:06.9]} 19. Bg3 {[%clk 0:01:33.7]} 19... h5
{[%clk 0:01:07.3]} 20. h3 {[%clk 0:01:33.8]} 20... Rha8 {[%clk 0:00:57.1]} 21.
b3 {[%clk 0:01:33.5]} 21... R5a6 {[%clk 0:00:56.7]} 22. h4 {[%clk 0:01:28.3]}
22... gxh4 {[%clk 0:00:43.3]} 23. Bxh4 {[%clk 0:01:29.2]} 23... Rg8 {[%clk
0:00:43.4]} 24. g3 {[%clk 0:01:00.6]} 24... Bxh4 {[%clk 0:00:34.1]} 25. Rxh4
{[%clk 0:01:01.5]} 25... Rg5 {[%clk 0:00:34.8]} 26. Rah1 {[%clk 0:01:02]} 26...
Rxe5+ {[%clk 0:00:32.5]} 27. Kd3 {[%clk 0:01:02.7]} 27... Rf5 {[%clk 0:00:22.9]}
28. f4 {[%clk 0:01:02.9]} 28... Ra8 {[%clk 0:00:22.9]} 29. Rxh5 {[%clk
0:01:01.4]} 29... Rg8 {[%clk 0:00:23.6]} 30. R5h3 {[%clk 0:00:56.3]} 30... Rf6
{[%clk 0:00:21.6]} 31. Ke3 {[%clk 0:00:55.4]} 31... Rfg6 {[%clk 0:00:18]} 32.
Kf3 {[%clk 0:00:55.5]} 32... e5 {[%clk 0:00:14.2]} 33. Rd1 {[%clk 0:00:55.5]}
33... d4 {[%clk 0:00:05.3]} 34. cxd4 {[%clk 0:00:50.6]} 34... exf4 {[%clk
0:00:05.7]} 35. gxf4 {[%clk 0:00:51.2]} 35... Ne7 {[%clk 0:00:05.5]} 36. Rc1
{[%clk 0:00:48.2]} 36... Nd5 {[%clk 0:00:05]} 37. Rc5 {[%clk 0:00:48.1]} 37...
Nb4 {[%clk 0:00:01.7]} 38. Rc7+ {[%clk 0:00:48.1]} 38... Ke6 {[%clk 0:00:02.3]}
39. Rxb7 {[%clk 0:00:48.1]} 39... Nc2 {[%clk 0:00:02.2]} 40. Rb6+ {[%clk
0:00:48]} 40... Ke7 {[%clk 0:00:01.6]} 41. Rxg6 {[%clk 0:00:47.5]} 41... Rxg6
{[%clk 0:00:02.5]} 42. Ke4 {[%clk 0:00:46.8]} 42... Rg1 {[%clk 0:00:02.4]} 43.
Kd3 {[%clk 0:00:46.4]} 43... Nb4+ {[%clk 0:00:02.3]} 44. Kc4 {[%clk 0:00:46.9]}
44... Nc2 {[%clk 0:00:02.7]} 45. d5 {[%clk 0:00:47]} 45... Rc1 {[%clk
0:00:02.9]} 46. Rc3 {[%clk 0:00:47.1]} 46... Ne3+ {[%clk 0:00:03.4]} 47. Kd4
{[%clk 0:00:47.4]} 1-0

[Event "Early-Titled-Tuesday-Blitz-May-14-2024"]
[Site "Chess.com"]
[Date "2024.05.14"]
[Round "6"]
[White "nabukatnezarr"]
[Black "Sasha_Solovev_777"]
[Result "1-0"]
[WhiteElo "2616"]
[BlackElo "2222"]
[TimeControl "180+1"]
[EndTime "9:08:31 PDT"]
[Termination "nabukatnezarr won on time"]

1. b3 {[%clk 0:03:00.9]} 1... e5 {[%clk 0:02:51.9]} 2. Bb2 {[%clk 0:03:00.8]}
2... d6 {[%clk 0:02:52.2]} 3. e3 {[%clk 0:02:56]} 3... f5 {[%clk 0:02:51.8]} 4.
c4 {[%clk 0:02:55.1]} 4... Nf6 {[%clk 0:02:52]} 5. Nc3 {[%clk 0:02:55.5]} 5...
g6 {[%clk 0:02:52]} 6. Nf3 {[%clk 0:02:54.2]} 6... Bg7 {[%clk 0:02:52.2]} 7. d4
{[%clk 0:02:54.7]} 7... e4 {[%clk 0:02:46.3]} 8. Nd2 {[%clk 0:02:54.7]} 8... c6
{[%clk 0:02:43.1]} 9. Be2 {[%clk 0:02:53]} 9... O-O {[%clk 0:02:42.5]} 10. Qc2
{[%clk 0:02:49.3]} 10... Be6 {[%clk 0:02:40.4]} 11. f3 {[%clk 0:02:41.7]} 11...
exf3 {[%clk 0:02:32.5]} 12. Bxf3 {[%clk 0:02:42.6]} 12... Ng4 {[%clk 0:02:31.5]}
13. Qd3 {[%clk 0:02:17]} 13... Qh4+ {[%clk 0:02:12.6]} 14. g3 {[%clk 0:02:16.7]}
14... Qg5 {[%clk 0:02:12.9]} 15. Nf1 {[%clk 0:02:14.9]} 15... Na6 {[%clk
0:01:47.9]} 16. a3 {[%clk 0:02:04.5]} 16... Bh6 {[%clk 0:01:42.3]} 17. h4 {[%clk
0:01:48.4]} 17... Qe7 {[%clk 0:01:36]} 18. d5 {[%clk 0:01:46.4]} 18... Nc5
{[%clk 0:01:15.3]} 19. Qc2 {[%clk 0:01:42.4]} 19... Bf7 {[%clk 0:00:44.5]} 20.
Bxg4 {[%clk 0:01:30.3]} 20... fxg4 {[%clk 0:00:39.9]} 21. b4 {[%clk 0:01:19]}
21... Nd7 {[%clk 0:00:30.6]} 22. O-O-O {[%clk 0:01:14]} 22... Ne5 {[%clk
0:00:25.6]} 23. dxc6 {[%clk 0:01:09.4]} 23... bxc6 {[%clk 0:00:24]} 24. Ne4
{[%clk 0:01:07.3]} 24... Nxc4 {[%clk 0:00:10.2]} 25. Nf6+ {[%clk 0:01:04.4]}
25... Kh8 {[%clk 0:00:07.6]} 26. Nd5+ {[%clk 0:00:54.9]} 26... Nxb2 {[%clk
0:00:05.1]} 27. Nxe7 {[%clk 0:00:55.4]} 27... Nxd1 {[%clk 0:00:05.6]} 28. Qxd1
{[%clk 0:00:47.4]} 28... Rad8 {[%clk 0:00:05.7]} 29. Kb1 {[%clk 0:00:42.6]}
29... Rd7 {[%clk 0:00:05.4]} 30. Nxc6 {[%clk 0:00:42.8]} 30... Rc8 {[%clk
0:00:05.4]} 31. Nd4 {[%clk 0:00:41.1]} 31... Bd5 {[%clk 0:00:05.5]} 32. Rh2
{[%clk 0:00:36.8]} 32... Be4+ {[%clk 0:00:05.7]} 33. Kb2 {[%clk 0:00:37]} 33...
Bg7 {[%clk 0:00:05.3]} 34. Nd2 {[%clk 0:00:36.8]} 34... Bd5 {[%clk 0:00:04.1]}
35. Nb3 {[%clk 0:00:36.1]} 35... Rdc7 {[%clk 0:00:04.1]} 36. Na5 {[%clk
0:00:34.2]} 36... Rc3 {[%clk 0:00:02.8]} 37. Qd2 {[%clk 0:00:28.8]} 1-0

[Event "Early-Titled-Tuesday-Blitz-May-14-2024"]
[Site "Chess.com"]
[Date "2024.05.14"]
[Round "6"]
[White "CrushingKings"]
[Black "Slovineanu"]
[Result "1-0"]
[WhiteElo "2632"]
[BlackElo "2486"]
[TimeControl "180+1"]
[EndTime "9:08:32 PDT"]
[Termination "CrushingKings won by resignation"]

1. Nf3 {[%clk 0:02:46.9]} 1... Nf6 {[%clk 0:02:59.7]} 2. g3 {[%clk 0:02:46.5]}
2... d5 {[%clk 0:02:58.9]} 3. Bg2 {[%clk 0:02:46.4]} 3... Nbd7 {[%clk
0:02:59.5]} 4. d4 {[%clk 0:02:45.5]} 4... e6 {[%clk 0:02:59]} 5. O-O {[%clk
0:02:45.7]} 5... b5 {[%clk 0:02:59.4]} 6. a4 {[%clk 0:02:43.6]} 6... b4 {[%clk
0:02:59.1]} 7. c4 {[%clk 0:02:44]} 7... dxc4 {[%clk 0:02:59]} 8. Ne5 {[%clk
0:02:43.7]} 8... Ba6 {[%clk 0:02:58.6]} 9. Bg5 {[%clk 0:02:28]} 9... Be7 {[%clk
0:02:27.3]} 10. Nc6 {[%clk 0:02:13.5]} 10... Qc8 {[%clk 0:02:26.8]} 11. Nxe7
{[%clk 0:02:11.9]} 11... Kxe7 {[%clk 0:02:26.6]} 12. Bxa8 {[%clk 0:02:12.5]}
12... Qxa8 {[%clk 0:02:25.8]} 13. Nd2 {[%clk 0:02:12.6]} 13... Qd5 {[%clk
0:02:18.8]} 14. Be3 {[%clk 0:01:54.8]} 14... Ng4 {[%clk 0:02:07.8]} 15. Nf3
{[%clk 0:01:53]} 15... h5 {[%clk 0:01:54.6]} 16. Bd2 {[%clk 0:01:50.8]} 16... c5
{[%clk 0:01:46.6]} 17. Re1 {[%clk 0:01:49.9]} 17... Ndf6 {[%clk 0:01:29.9]} 18.
Bg5 {[%clk 0:01:22.4]} 18... Rd8 {[%clk 0:01:21.9]} 19. e4 {[%clk 0:01:19.6]}
19... Qc6 {[%clk 0:01:17.7]} 20. e5 {[%clk 0:01:18.6]} 20... Bb7 {[%clk
0:01:13.9]} 21. h3 {[%clk 0:01:12]} 21... Rxd4 {[%clk 0:01:05.9]} 22. Qe2 {[%clk
0:01:02.1]} 22... Nxe5 {[%clk 0:01:05.5]} 23. Qxe5 {[%clk 0:00:43]} 23... Qxf3
{[%clk 0:00:59.1]} 24. Qxc5+ {[%clk 0:00:42.2]} 24... Rd6 {[%clk 0:00:56.5]} 25.
Kf1 {[%clk 0:00:26.6]} 25... Qg2+ {[%clk 0:00:27.4]} 26. Ke2 {[%clk 0:00:26.1]}
26... Bf3+ {[%clk 0:00:22.8]} 27. Ke3 {[%clk 0:00:26.1]} 27... Bd5 {[%clk
0:00:13.9]} 28. Rad1 {[%clk 0:00:17.4]} 28... Qf3+ {[%clk 0:00:05.3]} 29. Kd2
{[%clk 0:00:17.2]} 29... Qxf2+ {[%clk 0:00:05.4]} 30. Qxf2 {[%clk 0:00:16.8]}
1-0

[Event "Early-Titled-Tuesday-Blitz-May-14-2024"]
[Site "Chess.com"]
[Date "2024.05.14"]
[Round "6"]
[White "the_chess_child"]
[Black "MITerryble"]
[Result "1-0"]
[WhiteElo "2897"]
[BlackElo "3041"]
[TimeControl "180+1"]
[EndTime "9:08:33 PDT"]
[Termination "the_chess_child won by resignation"]

1. e4 {[%clk 0:02:58.1]} 1... e6 {[%clk 0:03:00.3]} 2. d3 {[%clk 0:02:57.9]}
2... d5 {[%clk 0:03:00.9]} 3. Nd2 {[%clk 0:02:57.3]} 3... Nf6 {[%clk 0:03:01.2]}
4. Ngf3 {[%clk 0:02:56.9]} 4... b6 {[%clk 0:03:01.6]} 5. g3 {[%clk 0:02:56.4]}
5... dxe4 {[%clk 0:03:01.7]} 6. dxe4 {[%clk 0:02:56.5]} 6... Bc5 {[%clk
0:03:01.3]} 7. Bg2 {[%clk 0:02:54.1]} 7... Ba6 {[%clk 0:03:01]} 8. c4 {[%clk
0:02:54.1]} 8... Qd3 {[%clk 0:02:59.6]} 9. b4 {[%clk 0:02:54.3]} 9... Be7 {[%clk
0:02:56.6]} 10. Bb2 {[%clk 0:02:42.6]} 10... Bb7 {[%clk 0:02:51.9]} 11. Ne5
{[%clk 0:02:36]} 11... Qd8 {[%clk 0:02:50.8]} 12. O-O {[%clk 0:02:35.5]} 12...
O-O {[%clk 0:02:41.2]} 13. a3 {[%clk 0:02:27.4]} 13... a5 {[%clk 0:02:28.6]} 14.
Bc3 {[%clk 0:02:22.1]} 14... Nfd7 {[%clk 0:01:56.1]} 15. Nd3 {[%clk 0:01:31.2]}
15... Re8 {[%clk 0:01:17.4]} 16. Qg4 {[%clk 0:01:27.3]} 16... Nf6 {[%clk
0:01:15.8]} 17. Qe2 {[%clk 0:01:27]} 17... Nfd7 {[%clk 0:01:03.8]} 18. Qg4
{[%clk 0:01:22.7]} 18... Nf6 {[%clk 0:01:00.9]} 19. Bxf6 {[%clk 0:01:06.8]}
19... Bxf6 {[%clk 0:00:49.1]} 20. e5 {[%clk 0:01:07.1]} 20... Bxg2 {[%clk
0:00:37.1]} 21. exf6 {[%clk 0:01:05.6]} 21... g6 {[%clk 0:00:37.6]} 22. Kxg2
{[%clk 0:01:05]} 22... Qxd3 {[%clk 0:00:37.7]} 23. Ne4 {[%clk 0:01:05.6]} 23...
axb4 {[%clk 0:00:23.1]} 24. Qf4 {[%clk 0:01:00.3]} 24... Kh8 {[%clk 0:00:15.8]}
25. Qh6 {[%clk 0:00:44]} 25... Qxe4+ {[%clk 0:00:13.5]} 26. f3 {[%clk
0:00:44.3]} 26... Qe2+ {[%clk 0:00:11.3]} 27. Rf2 {[%clk 0:00:44.6]} 27... Qxf2+
{[%clk 0:00:11.9]} 28. Kxf2 {[%clk 0:00:45.5]} 28... Rg8 {[%clk 0:00:12.8]} 29.
Rd1 {[%clk 0:00:45.2]} 29... Nc6 {[%clk 0:00:08.2]} 30. axb4 {[%clk 0:00:45.2]}
30... Ne5 {[%clk 0:00:08]} 31. Qf4 {[%clk 0:00:35.6]} 31... Nc6 {[%clk
0:00:06.3]} 32. Qxc7 {[%clk 0:00:34.9]} 32... Nxb4 {[%clk 0:00:06.7]} 33. Qxf7
{[%clk 0:00:35.3]} 33... Raf8 {[%clk 0:00:05.5]} 34. Qe7 {[%clk 0:00:33.6]}
34... Nc6 {[%clk 0:00:05]} 35. Qxe6 {[%clk 0:00:34]} 35... Na5 {[%clk 0:00:03]}
36. Rd7 {[%clk 0:00:30.6]} 1-0

[Event "Early-Titled-Tuesday-Blitz-May-14-2024"]
[Site "Chess.com"]
[Date "2024.05.14"]
[Round "6"]
[White "dinushkipremanath"]
[Black "Niktlt"]
[Result "0-1"]
[WhiteElo "2043"]
[BlackElo "2696"]
[TimeControl "180+1"]
[EndTime "9:08:36 PDT"]
[Termination "Niktlt won by checkmate"]

1. d4 {[%clk 0:03:00.9]} 1... Nf6 {[%clk 0:02:59.7]} 2. Nf3 {[%clk 0:02:59.7]}
2... e6 {[%clk 0:02:59.3]} 3. Bf4 {[%clk 0:02:59.4]} 3... d5 {[%clk 0:02:59.5]}
4. Nbd2 {[%clk 0:02:59.5]} 4... c5 {[%clk 0:02:59.9]} 5. c3 {[%clk 0:02:58.1]}
5... Nc6 {[%clk 0:03:00.4]} 6. e3 {[%clk 0:02:58.5]} 6... Bd6 {[%clk 0:03:01]}
7. Bg3 {[%clk 0:02:58]} 7... Ne4 {[%clk 0:03:01.5]} 8. Nxe4 {[%clk 0:02:55.4]}
8... dxe4 {[%clk 0:03:02.4]} 9. Nd2 {[%clk 0:02:55.1]} 9... f5 {[%clk
0:03:02.4]} 10. Bxd6 {[%clk 0:02:52]} 10... Qxd6 {[%clk 0:03:03.3]} 11. Nc4
{[%clk 0:02:42.2]} 11... Qe7 {[%clk 0:02:45]} 12. dxc5 {[%clk 0:02:38.9]} 12...
Qxc5 {[%clk 0:02:45.9]} 13. Nd6+ {[%clk 0:02:38.6]} 13... Ke7 {[%clk 0:02:46.3]}
14. Nb5 {[%clk 0:02:32]} 14... Rd8 {[%clk 0:02:42]} 15. Qc2 {[%clk 0:02:27.7]}
15... a6 {[%clk 0:02:28.5]} 16. Na3 {[%clk 0:02:14.6]} 16... e5 {[%clk
0:02:17.4]} 17. Be2 {[%clk 0:02:06]} 17... Be6 {[%clk 0:02:04.5]} 18. O-O {[%clk
0:02:04.6]} 18... Nb4 {[%clk 0:02:04.1]} 19. Qc1 {[%clk 0:02:01.8]} 19... Nd3
{[%clk 0:02:02.1]} 20. Qc2 {[%clk 0:01:52.9]} 20... b5 {[%clk 0:01:55.1]} 21.
Nb1 {[%clk 0:01:47.7]} 21... Bc4 {[%clk 0:01:49]} 22. b3 {[%clk 0:01:34.9]}
22... Be6 {[%clk 0:01:47]} 23. Rd1 {[%clk 0:01:31.1]} 23... Nb4 {[%clk
0:01:38.3]} 24. Qc1 {[%clk 0:01:27.9]} 24... Rxd1+ {[%clk 0:01:38]} 25. Qxd1
{[%clk 0:01:20.7]} 25... Rd8 {[%clk 0:01:37.4]} 26. Qc1 {[%clk 0:01:19.7]} 26...
Nd3 {[%clk 0:01:37.3]} 27. Qc2 {[%clk 0:01:17.9]} 27... f4 {[%clk 0:01:36.2]}
28. Bxd3 {[%clk 0:01:05.6]} 28... exd3 {[%clk 0:01:32.2]} 29. Qd2 {[%clk
0:00:59.1]} 29... f3 {[%clk 0:01:32.3]} 30. a4 {[%clk 0:00:52.5]} 30... e4
{[%clk 0:01:30.6]} 31. axb5 {[%clk 0:00:51.8]} 31... Qg5 {[%clk 0:01:30.5]} 32.
g3 {[%clk 0:00:46.6]} 32... Qh6 {[%clk 0:01:26.1]} 33. h4 {[%clk 0:00:37]} 33...
g5 {[%clk 0:01:20.7]} 34. Rxa6 {[%clk 0:00:29.8]} 34... gxh4 {[%clk 0:01:18.4]}
35. c4 {[%clk 0:00:22]} 35... hxg3 {[%clk 0:01:17]} 36. Ra7+ {[%clk 0:00:17.3]}
36... Bd7 {[%clk 0:01:10]} 37. fxg3 {[%clk 0:00:10.8]} 37... Rg8 {[%clk
0:01:09.7]} 38. Qb4+ {[%clk 0:00:07.7]} 38... Kd8 {[%clk 0:00:55.5]} 39. Ra8+
{[%clk 0:00:06.4]} 39... Bc8 {[%clk 0:00:55.9]} 40. Qa5+ {[%clk 0:00:04.7]}
40... Ke7 {[%clk 0:00:52.7]} 41. Qc7+ {[%clk 0:00:03.5]} 41... Bd7 {[%clk
0:00:44.9]} 42. Rxg8 {[%clk 0:00:02.9]} 42... Qxe3+ {[%clk 0:00:45.1]} 43. Kh2
{[%clk 0:00:03.3]} 43... Qf2+ {[%clk 0:00:44.9]} 44. Kh1 {[%clk 0:00:03.1]}
44... Qg2# {[%clk 0:00:45.1]} 0-1

[Event "Early-Titled-Tuesday-Blitz-May-14-2024"]
[Site "Chess.com"]
[Date "2024.05.14"]
[Round "6"]
[White "Fradi82"]
[Black "AccioChess"]
[Result "0-1"]
[WhiteElo "2200"]
[BlackElo "2435"]
[TimeControl "180+1"]
[EndTime "9:08:37 PDT"]
[Termination "AccioChess won on time"]

1. e4 {[%clk 0:03:00.9]} 1... c5 {[%clk 0:02:55.5]} 2. Nf3 {[%clk 0:02:57.7]}
2... Nc6 {[%clk 0:02:54.9]} 3. d4 {[%clk 0:02:57.7]} 3... c4 {[%clk 0:02:55.8]}
4. Bxc4 {[%clk 0:02:56.8]} 4... e6 {[%clk 0:02:54.9]} 5. d5 {[%clk 0:02:53.9]}
5... Na5 {[%clk 0:02:48.4]} 6. Bd3 {[%clk 0:02:48.3]} 6... Nf6 {[%clk
0:02:48.1]} 7. O-O {[%clk 0:02:34.3]} 7... b6 {[%clk 0:02:46.1]} 8. c4 {[%clk
0:02:27.6]} 8... d6 {[%clk 0:02:43.3]} 9. b4 {[%clk 0:02:19.1]} 9... Nb7 {[%clk
0:02:42.7]} 10. Nc3 {[%clk 0:02:17.7]} 10... Be7 {[%clk 0:02:42.4]} 11. Nd4
{[%clk 0:02:04.1]} 11... O-O {[%clk 0:02:39.8]} 12. Nc6 {[%clk 0:02:03.3]} 12...
Qd7 {[%clk 0:02:38.3]} 13. Bg5 {[%clk 0:02:00.2]} 13... h6 {[%clk 0:02:31.3]}
14. Bh4 {[%clk 0:01:54]} 14... Nxd5 {[%clk 0:02:24.1]} 15. exd5 {[%clk
0:01:23.7]} 15... Bxh4 {[%clk 0:02:22.9]} 16. Qg4 {[%clk 0:01:19]} 16... Bf6
{[%clk 0:02:17.8]} 17. Qe4 {[%clk 0:00:57.3]} 17... g6 {[%clk 0:02:17.5]} 18.
Rac1 {[%clk 0:00:57.4]} 18... Bg7 {[%clk 0:01:48.2]} 19. dxe6 {[%clk 0:00:39]}
19... Qxe6 {[%clk 0:01:47.6]} 20. Nb5 {[%clk 0:00:32.4]} 20... Qd7 {[%clk
0:01:26.6]} 21. Ne7+ {[%clk 0:00:17.9]} 21... Kh7 {[%clk 0:01:26]} 22. Nxg6
{[%clk 0:00:17.9]} 22... fxg6 {[%clk 0:01:17.8]} 23. Qxg6+ {[%clk 0:00:18]}
23... Kg8 {[%clk 0:01:18.1]} 24. Qh7+ {[%clk 0:00:16.5]} 24... Kf7 {[%clk
0:01:18.4]} 25. Bg6+ {[%clk 0:00:12.2]} 25... Kf6 {[%clk 0:01:11.2]} 26. Nc3
{[%clk 0:00:12.4]} 26... Rh8 {[%clk 0:01:05.4]} 27. Nd5+ {[%clk 0:00:12.2]}
27... Kg5 {[%clk 0:01:01.7]} 28. f4+ {[%clk 0:00:12.2]} 28... Kh4 {[%clk
0:01:00]} 29. g3+ {[%clk 0:00:11.4]} 29... Kh3 {[%clk 0:01:00.4]} 30. Bf5+
{[%clk 0:00:11.8]} 30... Qxf5 {[%clk 0:01:00]} 31. Qxg7 {[%clk 0:00:10.7]} 31...
Be6 {[%clk 0:00:47.3]} 32. Ne3 {[%clk 0:00:09]} 32... Qe4 {[%clk 0:00:39.5]} 33.
Rce1 {[%clk 0:00:03.8]} 33... Rag8 {[%clk 0:00:35.3]} 34. Qf6 {[%clk 0:00:02.9]}
34... Rxg3+ {[%clk 0:00:21.7]} 35. hxg3 {[%clk 0:00:02.4]} 35... Kxg3 {[%clk
0:00:22.2]} 36. Rf3+ {[%clk 0:00:01.1]} 36... Qxf3 {[%clk 0:00:15.7]} 37. Qg6+
{[%clk 0:00:01.3]} 37... Kh3 {[%clk 0:00:15.5]} 0-1

[Event "Early-Titled-Tuesday-Blitz-May-14-2024"]
[Site "Chess.com"]
[Date "2024.05.14"]
[Round "6"]
[White "LoaySameer"]
[Black "youngdinousaur"]
[Result "1-0"]
[WhiteElo "2545"]
[BlackElo "2380"]
[TimeControl "180+1"]
[EndTime "9:08:39 PDT"]
[Termination "LoaySameer won by resignation"]

1. Nf3 {[%clk 0:03:00.9]} 1... Nf6 {[%clk 0:02:59.3]} 2. g3 {[%clk 0:03:01.1]}
2... e6 {[%clk 0:03:00.2]} 3. Bg2 {[%clk 0:02:57.4]} 3... d5 {[%clk 0:03:01.1]}
4. O-O {[%clk 0:02:57.8]} 4... Be7 {[%clk 0:03:01.3]} 5. d3 {[%clk 0:02:58.4]}
5... O-O {[%clk 0:03:01.8]} 6. Nbd2 {[%clk 0:02:58.4]} 6... c5 {[%clk
0:03:02.4]} 7. e4 {[%clk 0:02:59]} 7... Nc6 {[%clk 0:03:02.6]} 8. Re1 {[%clk
0:02:59.7]} 8... b5 {[%clk 0:03:02.7]} 9. exd5 {[%clk 0:03:00.3]} 9... exd5
{[%clk 0:03:02.4]} 10. d4 {[%clk 0:03:00.8]} 10... c4 {[%clk 0:02:56.9]} 11. Nf1
{[%clk 0:03:00.9]} 11... b4 {[%clk 0:02:54.1]} 12. Ne5 {[%clk 0:02:58.1]} 12...
Bb7 {[%clk 0:02:52.4]} 13. Ne3 {[%clk 0:02:58.1]} 13... Rc8 {[%clk 0:02:26.6]}
14. Nf5 {[%clk 0:02:55.2]} 14... Nxe5 {[%clk 0:02:16.9]} 15. Rxe5 {[%clk
0:02:41.8]} 15... Bd6 {[%clk 0:02:15.5]} 16. Bg5 {[%clk 0:02:28.2]} 16... h6
{[%clk 0:01:14.8]} 17. Qd2 {[%clk 0:00:21.7]} 17... Bxe5 {[%clk 0:00:52.7]} 18.
dxe5 {[%clk 0:00:20.7]} 18... Ne4 {[%clk 0:00:52.9]} 19. Bxe4 {[%clk 0:00:17.3]}
19... Qxg5 {[%clk 0:00:52.4]} 20. Qxg5 {[%clk 0:00:13]} 20... hxg5 {[%clk
0:00:53.3]} 21. Ne7+ {[%clk 0:00:13.9]} 21... Kh8 {[%clk 0:00:52.7]} 22. Nxc8
{[%clk 0:00:14.8]} 22... Rxc8 {[%clk 0:00:47.7]} 23. Bg2 {[%clk 0:00:14.8]}
23... Rd8 {[%clk 0:00:37.6]} 24. Rd1 {[%clk 0:00:15.1]} 24... f6 {[%clk
0:00:34.4]} 25. exf6 {[%clk 0:00:14.4]} 25... gxf6 {[%clk 0:00:35.3]} 26. Rd4
{[%clk 0:00:14]} 26... Kg7 {[%clk 0:00:33.7]} 27. b3 {[%clk 0:00:13.2]} 27...
cxb3 {[%clk 0:00:27.5]} 28. cxb3 {[%clk 0:00:14.1]} 28... a5 {[%clk 0:00:27.7]}
29. Bf3 {[%clk 0:00:14.3]} 29... Kf7 {[%clk 0:00:27.1]} 30. Bg4 {[%clk 0:00:14]}
30... Re8 {[%clk 0:00:22.2]} 31. Bf5 {[%clk 0:00:13.6]} 31... Re2 {[%clk
0:00:17.5]} 32. h4 {[%clk 0:00:13.6]} 32... gxh4 {[%clk 0:00:16.6]} 33. gxh4
{[%clk 0:00:14.5]} 33... Rxa2 {[%clk 0:00:15.7]} 34. h5 {[%clk 0:00:15.1]} 34...
Rb2 {[%clk 0:00:13.5]} 35. h6 {[%clk 0:00:14.9]} 35... Rxb3 {[%clk 0:00:12.9]}
36. h7 {[%clk 0:00:14]} 36... Kg7 {[%clk 0:00:13.4]} 37. Rg4+ {[%clk 0:00:14]}
1-0